Cogmind - Beta 12 X1 @@@ ROGUE MODE // 2022.07.04 @ 13:55:06 Player: aoemica Result: Destroyed by G-67 Veteran with Plasma Rifle Performance ------------- Evolutions (6) 3000 Regions Visited (22) 4400 Robots Destroyed (424) 2120 Value Destroyed (18113) 18113 Prototype IDs (56) 1120 Alien Tech Used (0) 0 Bonus (9648) 9648 TOTAL SCORE: 38401 Bonus ------- High Alert Combat Kills 4113 Follower Combat Kills 542 Entered Garrisons 400 Met Data Miner 300 Met Warlord at Base 500 MAIN.C Attacked Warlord 500 Warlord Defense Kills 3510 Friendly Fire -217 Cogmind --------- Core Integrity 0/1150 Matter 227/300 Energy 810/810 System Corruption 11% Temperature Cool (12) Movement Walking (120) Location -4/Armory Parts ------- > --- POWER (2) -------- Reinforced Fission Core > --- PROPULSION (5) --- Centrium Leg Centrium Leg Centrium Leg Centrium Leg > --- UTILITY (9) ------ Advanced Coolant Injector Huge Storage Unit Advanced Energy Well Experimental Optical Array Encrypted Comm Array Experimental Targeting Computer Improved Weapon Cycler Graphene Brace > --- WEAPON (3) ------- Heavy Tesla Rifle > --- INVENTORY (25) --- Advanced Medium Treads Centrium Heavy Treads Centrium Heavy Treads Flexi-carbon Leg Centrium Leg Improved Heat Sink Advanced Heat Sink Advanced Matter Compressor (41) Experimental Sensor Array Advanced Terrain Scanner Advanced Terrain Scan Processor Ghost Barrier Heavy Proton Cannon Heavy Proton Cannon Heavy Proton Cannon Proton Burst Cannon Neutron Cannon Tiamat Missile Launcher Tiamat Missile Launcher RU-N14's Throwing Claymores v3 (3) Peak State ------------ > --- POWER ------------ Vortex Chain Reactor > --- PROPULSION ------- Enhanced Biometal Leg Enhanced Biometal Leg Enhanced Biometal Leg Enhanced Biometal Leg Enhanced Biometal Leg > --- UTILITY ---------- Advanced Heat Sink Experimental Heat Sink Advanced Cooling System Huge Storage Unit Experimental Sensor Array Advanced Signal Interpreter Advanced Weapon Cycler Improved Transmission Jammer Improved Medium Armor Plating > --- WEAPON ----------- Enhanced Force Rifle Enhanced Force Rifle Neutron Cannon > --- INVENTORY -------- Particle Reactor Advanced Heat Sink Experimental Heat Sink High-capacity Storage Unit Energy Well Advanced Terrain Scanner Advanced Terrain Scan Processor Encrypted Comm Array Experimental Targeting Computer Precision Energy Filter Improved Light Armor Plating Graphene Brace Ghost Barrier Heavy Tesla Rifle Field Laser Plasma Rifle Plasma Rifle Plasma Rifle Plasma Rifle Thermic Laser Long-range Missile Launcher RU-N14's Throwing Claymores v3 RU-N14's Throwing Claymores v3 RU-N14's Throwing Claymores v3 [Rating: 151] Favorites ----------- Power Reinforced Antimatter Reactor Engine Ion Engine Power Core Fission Core Reactor Reinforced Antimatter Reactor Propulsion Light Treads Treads Light Treads Leg Enhanced Biometal Leg Utility Improved Heat Sink Device Improved Heat Sink Storage Huge Storage Unit Processor Improved Targeting Computer Hackware Hacking Suite Protection Improved Medium Armor Plating Weapon Force Rifle Energy Gun Force Rifle Energy Cannon Neutron Cannon Ballistic Gun Shotgun Ballistic Cannon Light Cannon Launcher Heavy Rocket Launcher Special Weapon RU-N14's Throwing Claymores v3 Impact Weapon Great Maul Special Melee Weapon Datajack Build | -11 -10 -10 -10 -9 -8 -8 -8 -8 -6 -6 -6 -6 -5 -5 -5 -5 -5 -5 -5 -4 -4 -4 ------- Run | Scr Mat Min Exi Min Mat Sto Gar Rec Fac Low Low Dat Pro Fac Gar Fac Upp Upp War Pro Fac Arm Slots Evolved 12 | . . . . . 4 . . . 4 . . . . 2 . . . . . . 2 . Power 1 | . . . . . . . . . 1 . . . . . . . . . . . . . Propulsion 3 | . . . . . 1 . . . 1 . . . . . . . . . . . 1 . Utility 7 | . . . . . 3 . . . 1 . . . . 2 . . . . . . 1 . Weapon 1 | . . . . . . . . . 1 . . . . . . . . . . . . . Parts Attached 477 | . 17 6 2 5 36 18 20 1 28 3 4 1 14 9 35 59 17 8 35 35 82 42 Power 34 | . 2 1 . 1 2 2 1 . 1 1 . . . . 3 3 4 . 1 . 9 3 Engine 12 | . 2 1 . 1 . 2 1 . . 1 . . . . 1 2 1 . . . . . Core 9 | . . . . . 2 . . . 1 . . . . . 1 1 . . . . 2 2 Reactor 13 | . . . . . . . . . . . . . . . 1 . 3 . 1 . 7 1 Propulsion 72 | . 7 . . 2 9 7 7 . 10 . . . . . 4 2 1 . 1 4 9 9 Treads 46 | . 2 . . 2 9 7 7 . 10 . . . . . 4 2 1 . 1 . . 1 Leg 26 | . 5 . . . . . . . . . . . . . . . . . . 4 9 8 Wheel . | . . . . . . . . . . . . . . . . . . . . . . . Hover . | . . . . . . . . . . . . . . . . . . . . . . . Flight . | . . . . . . . . . . . . . . . . . . . . . . . Utility 199 | . 4 2 . . 12 6 6 1 8 2 3 1 5 7 13 34 10 4 12 14 37 18 Device 147 | . 3 1 . . 5 1 3 . 4 2 3 . 3 5 9 28 10 4 9 13 28 16 Storage 9 | . 1 1 . . 1 . 1 . . . . . . 1 . . . . . . 3 1 Processor 5 | . . . . . 1 . . . 1 . . . . . . . . . 1 . 1 1 Hackware 1 | . . . . . . 1 . . . . . . . . . . . . . . . . Protection 37 | . . . . . 5 4 2 1 3 . . 1 2 1 4 6 . . 2 1 5 . Artifact . | . . . . . . . . . . . . . . . . . . . . . . . Weapon 172 | . 4 3 2 2 13 3 6 . 9 . 1 . 9 2 15 20 2 4 21 17 27 12 Energy Gun 104 | . 2 1 . . 3 3 3 . 7 . . . 8 1 12 13 1 2 13 10 19 6 Energy Cannon 27 | . . . 1 1 . . . . . . . . . . 1 7 . 1 3 5 4 4 Ballistic Gun 11 | . 2 1 . 1 6 . . . 1 . . . . . . . . . . . . . Ballistic Cannon 1 | . . 1 . . . . . . . . . . . . . . . . . . . . Launcher 15 | . . . . . 1 . 3 . . . 1 . 1 1 2 . 1 1 1 . 3 . Special Weapon 9 | . . . . . . . . . . . . . . . . . . . 4 2 1 2 Impact Weapon 4 | . . . . . 3 . . . 1 . . . . . . . . . . . . . Slashing Weapon . | . . . . . . . . . . . . . . . . . . . . . . . Piercing Weapon . | . . . . . . . . . . . . . . . . . . . . . . . Special Melee Weapon 1 | . . . 1 . . . . . . . . . . . . . . . . . . . Unidentified Prototypes 25 | . . . . . 1 . . . 1 . . . . . . 2 . . 5 1 12 3 Parts Lost 63 | . 2 1 . . 4 1 2 . . . . . . . 8 2 1 2 1 1 21 17 Power 11 | . 1 1 . . . . . . . . . . . . 2 . . . . . 3 4 Propulsion 10 | . . . . . 2 1 1 . . . . . . . 3 . . . . . 2 1 Utility 29 | . . . . . 2 . 1 . . . . . . . 3 2 1 2 1 1 10 6 Weapon 13 | . 1 . . . . . . . . . . . . . . . . . . . 6 6 Highest Loss Streak 7 | . 1 1 . . 2 1 1 . . . . . . . 5 1 1 2 1 1 6 7 To Critical Strikes . | . . . . . . . . . . . . . . . . . . . . . . . Average Slot Usage (%) 92 | . 99 100 99 100 98 99 96 90 90 93 93 93 93 94 91 87 87 87 84 82 93 93 Engine 5 | . 13 14 14 14 . 4 9 9 6 6 6 6 6 5 4 2 5 5 2 . . . Core 2 | . . . . . 8 4 . . 5 6 6 6 6 5 4 2 . . . . 1 2 Reactor 2 | . . . . . . . . . . . . . . . . 5 5 5 5 5 5 3 Treads 15 | . 2 28 28 28 27 27 23 18 18 20 20 20 20 17 15 11 11 11 11 10 . . Leg 3 | . 25 . . . . . . . . . . . . . . . . . . 1 25 25 Device 21 | . 13 14 14 14 17 18 18 18 19 20 20 20 19 23 21 22 22 25 28 29 28 29 Storage 7 | . 14 14 14 14 9 9 9 9 6 6 6 6 6 5 5 5 5 5 5 5 5 8 Processor 7 | . . . . . 8 9 9 9 6 13 13 13 13 11 11 11 11 8 5 5 5 6 Protection 4 | . . . . . 8 8 8 9 5 . . . . 5 5 5 5 5 5 5 4 . Energy Gun 14 | . 13 14 1 . 2 18 17 18 19 20 15 13 15 16 16 16 16 16 16 14 14 10 Energy Cannon 1 | . . . 8 14 1 . . . . . . . . . . . . . . 1 . 3 Ballistic Gun 3 | . 14 13 14 14 13 . . . . . . . . . . . . . . . . . Naked Turns . | . . . . . . . . . . . . . . . . . . . . . . . Heaviest Build 155 | 12 22 32 32 33 60 60 62 60 85 78 80 87 88 131 147 149 144 147 155 145 155 138 Greatest Support 150 | 20 40 40 40 40 60 60 95 95 150 135 135 135 135 135 135 145 145 145 145 135 150 143 Greatest Overweight (x) 1 | . . . . . . . 1 . . . . . . . 1 1 . 1 1 1 1 1 Average Overweight (x) . | . . . . . . . . . . . . . . . . . . . . 1 . . Largest Inventory Capacity 25 | . 10 15 15 15 20 20 20 20 20 20 20 20 20 25 25 25 25 25 25 25 25 25 Average Capacity 20 | . 8 13 15 15 17 20 20 20 20 20 20 20 20 22 25 25 25 25 25 25 25 25 Most Carried 25 | . 10 15 15 15 20 20 20 20 20 20 20 20 20 21 25 25 25 25 25 25 25 25 Average Carried 20 | . 7 12 14 14 17 19 19 20 19 19 20 20 20 20 24 24 24 24 24 24 24 24 Final Capacity 25 | 8 10 15 15 15 20 20 20 20 20 20 20 20 20 25 25 25 25 25 25 25 25 25 Final Carried 25 | 6 10 15 15 15 20 20 20 20 20 20 20 20 20 21 25 25 25 23 25 22 25 25 Class Distribution -------------------- 29% | Mutant 20% | Scavenger-Mutant 11% | Scavenger-Tank 9% | Skirmisher 9% | Tank 9% | Scavenger-Gunner 9% | Scavenger-Skirmisher Dominant Class ---------------- Scavenger-Mutant | -10/Materials Mutant | -10/Mines Mutant | -10/Exiles Mutant | -9/Mines Scavenger-Mutant | -8/Materials Scavenger-Mutant | -8/Storage Scavenger-Mutant | -8/Garrison Mutant | -8/Recycling Tank | -6/Factory Skirmisher | -6/Lower Caves Mutant | -6/Lower Caves Mutant | -6/Data Miner Mutant | -5/Proximity Caves Tank | -5/Factory Scavenger-Gunner | -5/Garrison Scavenger-Tank | -5/Factory Scavenger-Skirmisher | -5/Upper Caves Scavenger-Tank | -5/Upper Caves Scavenger-Tank | -5/Warlord Skirmisher | -4/Proximity Caves Scavenger-Gunner | -4/Factory Scavenger-Gunner | -4/Armory Resources | -11 -10 -10 -10 -9 -8 -8 -8 -8 -6 -6 -6 -6 -5 -5 -5 -5 -5 -5 -5 -4 -4 -4 ----------- Run | Scr Mat Min Exi Min Mat Sto Gar Rec Fac Low Low Dat Pro Fac Gar Fac Upp Upp War Pro Fac Arm Matter Collected 6416 | 193 379 251 20 90 817 194 246 . 169 180 50 . 139 111 396 643 266 171 350 347 920 484 Remotely . | . . . . . . . . . . . . . . . . . . . . . . . Salvage Created 21099 | . 1008 336 . 144 2097 1191 911 . 353 164 112 . 193 515 1427 3501 276 98 1256 688 5815 1014 Parts 884 | . 61 25 . 6 127 60 52 . 10 6 9 . 8 25 59 122 18 2 43 14 209 28 Haulers Intercepted 27 | . 2 . . . 4 3 . . 2 . . . . 3 . 5 . . . . 8 . Recyclers Shooed 19 | . 5 . . . 4 1 . . 1 . . . . 1 . 5 . . . . 2 . Parts Field Recycled . | . . . . . . . . . . . . . . . . . . . . . . . Retrieved Matter . | . . . . . . . . . . . . . . . . . . . . . . . Parts Self-Destructed 46 | . . . . . . . . . . 1 12 . 8 . . . 15 . . 10 . . Prevented . | . . . . . . . . . . . . . . . . . . . . . . . Kills | -11 -10 -10 -10 -9 -8 -8 -8 -8 -6 -6 -6 -6 -5 -5 -5 -5 -5 -5 -5 -4 -4 -4 ------- Run | Scr Mat Min Exi Min Mat Sto Gar Rec Fac Low Low Dat Pro Fac Gar Fac Upp Upp War Pro Fac Arm Combat Hostiles Destroyed 325 | . 17 13 . 2 29 20 23 . 2 . 4 . 3 4 26 38 8 4 27 11 67 27 Melee 1 | . . . . . 1 . . . . . . . . . . . . . . . . . Guns 213 | . 17 13 . 1 20 20 14 . 1 . 4 . 2 . 19 33 3 1 14 4 37 10 Cannons 14 | . . . . 1 4 . . . . . . . . . . 2 . . 1 1 1 4 AOE 69 | . . . . . . . 8 . . . . . . 4 6 . 5 3 12 5 18 8 Classes Destroyed 23 | . 6 1 . . 3 . 1 . . . . . 1 1 1 1 . . 4 . 2 2 Worker 19 | . 1 . . 2 1 . . . . . . . . . . 3 . . . . 12 . Builder 5 | . . . . . . . . . . . . . . 1 . . . . . . 4 . Tunneler 5 | . . 2 . . 1 . . . . . . . . . . 1 . . . . 1 . Hauler 27 | . 2 . . . 4 3 . . 2 . . . . 3 . 5 . . . . 8 . Recycler 22 | . 2 1 . 1 9 1 . . . . . . . . . 3 . . . . 5 . Mechanic 3 | . . . . . . . . . . . . . . . . 2 . . . . 1 . Operator 1 | . . . . . . . . . . . . . . . . . . . . . 1 . Watcher 17 | . 3 . . . 5 1 . . . . . . . 2 . 4 . . . . 2 . Swarmer 70 | . 3 9 . . 10 3 12 . . . 4 . . 4 8 7 6 . . . 4 . Saboteur 1 | . . . . . . . . . . . . . . . . . . . . . . 1 Grunt 126 | . 14 4 . 2 9 10 9 . . . . . 1 . 8 15 . 3 15 9 22 5 Brawler 5 | . . . . . . . 1 . . . . . . . . . . 1 1 . . 2 Duelist 12 | . . . . . 1 . 1 . . . . . 1 . . . . . . 1 2 6 Protector 7 | . . . . . . . . . . . . . . . . . . . 3 . 3 1 Sentry 40 | . . . . . 7 7 . . 2 . . . . . 2 6 2 . . . 11 3 Demolisher 6 | . . . . . . . . . . . . . . . . . . . 4 . . 2 Specialist 8 | . . . . . . . . . . . . . . . . . . . . . 4 4 Hunter 17 | . . . . . 2 . . . . . . . . . 4 3 . . . . 8 . Programmer 22 | . . . . . . . . . . . . . . . 1 7 . . . . 12 2 Heavy 1 | . . . . . . . . . . . . . . . . . . . . . . 1 Behemoth 5 | . . . . . . . . . . . . . 1 . 3 . . . . 1 . . Striker 2 | . . . . . . . . . . . . . . . . . . . 1 . 1 . Executioner 3 | . . . . . . . . . . . . . . . . . . . 3 . . . Decomposer 4 | . . . . . . . . . . 4 . . . . . . . . . . . . Best Kill Streak 30 | . 4 3 . 2 8 7 10 . 2 . 4 . 2 4 5 7 5 4 11 3 30 16 Combat Bots Only 17 | . 4 3 . 1 8 6 10 . 2 . 4 . 2 4 5 6 5 4 11 3 17 16 Max Kills in Single Turn 5 | . 2 2 . 1 2 1 3 . 1 1 2 . 1 4 2 2 4 2 5 3 5 2 Gunslinging 1 | . 1 . . . 1 . . . . . . . . . 1 1 . . 1 . 1 1 Exploded 5 | . . . . . . . 3 . . . . . . 4 2 . 4 2 5 3 4 2 Melee 1 | . . . . . 1 . . . . . . . . . . . . . . . . . Uniques/NPCs Destroyed . | . . . . . . . . . . . . . . . . . . . . . . . Combat | -11 -10 -10 -10 -9 -8 -8 -8 -8 -6 -6 -6 -6 -5 -5 -5 -5 -5 -5 -5 -4 -4 -4 -------- Run | Scr Mat Min Exi Min Mat Sto Gar Rec Fac Low Low Dat Pro Fac Gar Fac Upp Upp War Pro Fac Arm Damage Taken 20420 | . 607 332 . 128 1631 939 595 . 202 . 164 . 63 . 2082 2015 238 161 1025 868 5257 4113 Core 2181 | . 68 46 . 36 184 105 87 . 31 . . . . . 63 166 28 . 106 100 370 791 Absorbed by Shields 1012 | . . . . . . . . . 92 . . . . . 498 350 6 54 12 . . . Reduced by Siege Mode 44 | . . . . . . . . . . . . . . . 26 10 . . . . . 8 Regen/Repaired (Parts) 288 | . . . . . 111 . . . . . . . . . . . . . 177 . . . Core Remaining (%) 64 | 100 . . . 40 . . . 31 . . . . 96 . . . . . . 53 . . Volleys Fired 1034 | . 81 55 . 10 110 55 83 . 13 5 5 . 10 12 83 147 13 9 45 59 177 62 Largest 3 | . 2 2 . 2 2 2 2 . 3 3 3 . 3 3 3 3 3 3 3 3 3 3 Hottest 251 | . 88 88 . 83 110 122 122 . 240 240 240 . 197 240 241 251 243 243 243 250 243 240 Shots Fired 2305 | . 151 92 . 20 200 110 137 . 39 15 15 . 22 34 193 404 32 12 105 96 477 151 Gun 2073 | . 151 77 . 10 161 110 133 . 39 15 15 . 21 33 181 380 29 5 97 52 449 115 Cannon 180 | . . 15 . 10 38 . . . . . . . . . 8 24 . 1 4 40 11 29 Launcher 27 | . . . . . 1 . 4 . . . . . 1 1 4 . 3 6 . . 7 . Special 25 | . . . . . . . . . . . . . . . . . . . 4 4 10 7 Kinetic 296 | . 85 52 . 10 149 . . . . . . . . . . . . . . . . . Thermal 1947 | . 66 40 . 10 50 110 133 . 39 15 15 . 21 33 189 404 29 6 101 92 451 143 Explosive 52 | . . . . . 1 . 4 . . . . . 1 1 4 . 3 6 4 4 17 7 Electromagnetic 10 | . . . . . . . . . . . . . . . . . . . . . 9 1 Robot Hit Streak 41 | . 9 9 . 5 23 24 16 . 20 3 3 . 16 10 24 22 8 9 14 17 41 31 Robot Miss Streak 8 | . 4 8 . 2 3 2 3 . 2 2 2 . 1 3 3 4 1 1 3 2 6 2 Penetration Max . | . . . . . . . . . . . . . . . . . . . . . . . Secondary Targets 41 | . 1 . . . 3 1 . . 1 . 1 . 1 . 10 7 . . 6 . 9 1 Max Gunslinging Chain 2 | . 1 . . . 1 1 . . 1 . 1 . 1 . 2 1 . . 1 . 1 1 Shots Hit Robots 1539 | . 92 35 4 14 159 85 76 . 28 6 8 . 19 22 118 264 24 8 68 46 352 111 Core Hits 777 | . 45 16 . 6 70 37 44 . 6 5 4 . 7 14 53 109 15 11 48 19 200 68 Critical Kills 45 | . . . . . 3 . . . 1 . . . . . 2 5 1 1 7 3 22 . Critical Parts Destroyed 50 | . . . . . 3 . . . 1 . . . 2 3 . 5 2 1 3 3 27 . Critical Strikes 178 | . 5 . . . 6 5 5 . 2 . . . 3 3 13 22 4 2 11 12 70 15 Burn 72 | . 5 . . . . 5 5 . . . . . 1 . 11 12 . . . 6 15 12 Meltdown 1 | . . . . . 1 . . . . . . . . . . . . . . . . . Destroy 98 | . . . . . 2 . . . 2 . . . 2 3 2 10 4 2 11 6 54 . Smash 3 | . . . . . 3 . . . . . . . . . . . . . . . . . Sever 4 | . . . . . . . . . . . . . . . . . . . . . 1 3 Melee Attacks 14 | . . . 4 . 9 . . . 1 . . . . . . . . . . . . . Impact 10 | . . . . . 9 . . . 1 . . . . . . . . . . . . . Slashing . | . . . . . . . . . . . . . . . . . . . . . . . Piercing . | . . . . . . . . . . . . . . . . . . . . . . . Sneak Attacks 4 | . . . 4 . . . . . . . . . . . . . . . . . . . Combat Hostiles . | . . . . . . . . . . . . . . . . . . . . . . . Follow-up Attacks . | . . . . . . . . . . . . . . . . . . . . . . . Damage Inflicted 51001 | . 1472 574 . 258 2939 1702 2287 2 598 149 213 . 510 935 3794 6483 955 977 4030 2066 14939 6118 Guns 31617 | . 1334 529 . 127 1943 1682 1580 . 598 149 213 . 470 577 2756 6166 574 96 1783 903 8104 2033 Cannons 1902 | . . . . 112 592 . . . . . . . . . . 254 . . . 110 238 596 Explosions 15461 | . . . . . . . 491 . . . . . 40 285 1038 . 381 881 2081 933 6144 3187 Melee 329 | . . . . . 329 . . . . . . . . . . . . . . . . . Ramming 815 | . 138 45 . 19 75 20 216 2 . . . . . 73 . 63 . . . 36 108 20 Kinetic 2768 | . 670 232 . 127 1739 . . . . . . . . . . . . . . . . . Thermal 30887 | . 664 297 . 112 796 1682 1580 . 598 149 213 . 470 577 2756 6420 574 96 1783 1013 8510 2597 Explosive 15054 | . . . . . . . 491 . . . . . 40 285 1038 . 381 881 2081 933 5737 3187 Electromagnetic 271 | . . . . . . . . . . . . . . . . . . . . . 239 32 Impact 329 | . . . . . 329 . . . . . . . . . . . . . . . . . Slashing 877 | . . . . . . . . . . . . . . . . . . . 166 84 345 282 Piercing . | . . . . . . . . . . . . . . . . . . . . . . . Highest Corruption 11 | . . . . . 3 3 3 3 . . . . . . . 4 4 5 5 1 8 11 Average Corruption 3 | . . . . . 2 3 3 3 . . . . . . . 2 4 4 1 1 5 9 Corruption Purged . | . . . . . . . . . . . . . . . . . . . . . . . Corruption Blocked . | . . . . . . . . . . . . . . . . . . . . . . . Effects 223 | . . . . . 17 15 27 9 . . . . . . . 38 22 14 2 25 37 17 Message Errors 57 | . . . . . 4 2 8 1 . . . . . . . 11 3 7 2 9 5 5 Matter Fused 55 | . . . . . 3 2 9 3 . . . . . . . 9 8 2 . 4 10 5 Heat Flow Errors 25 | . . . . . 2 2 . . . . . . . . . 3 3 2 . 6 7 . Energy Discharges 22 | . . . . . 1 3 3 3 . . . . . . . 4 2 1 . 1 3 1 Parts Rejected 3 | . . . . . . . 1 1 . . . . . . . . . . . . . 1 Data Loss (minor) 23 | . . . . . 3 5 1 . . . . . . . . 5 4 1 . 1 1 2 Data Loss (major) 12 | . . . . . 2 . 2 1 . . . . . . . 2 . 1 . 1 1 2 Misfires 5 | . . . . . . . 1 . . . . . . . . 1 . . . 3 . . Alerts 4 | . . . . . 1 1 . . . . . . . . . . 1 . . . 1 . Weapon Failures 17 | . . . . . 1 . 2 . . . . . . . . 3 1 . . . 9 1 Overload Shots . | . . . . . . . . . . . . . . . . . . . . . . . Overflow Damage 737 | . . . . . 163 . . . . . . . . 3 . 21 . 6 42 28 246 228 Projectiles 98 | . . . . . 16 . . . . . . . . . . 21 . . . . . 61 Explosions 489 | . . . . . . . . . . . . . . . . . . 6 42 28 246 167 Melee 150 | . . . . . 147 . . . . . . . . 3 . . . . . . . . Knockbacks 13 | . . . . 1 6 1 4 . . . . . . 1 . . . . . . . . Impact 13 | . . . . 1 6 1 4 . . . . . . 1 . . . . . . . . Kinetic . | . . . . . . . . . . . . . . . . . . . . . . . Secondary . | . . . . . . . . . . . . . . . . . . . . . . . Self-Inflicted Damage 18 | . . . . . . . . . . . . . . . 18 . . . . . . . Shots 1 | . . . . . . . . . . . . . . . 1 . . . . . . . Rammed 81 | . 2 6 . 2 18 2 37 1 . . . . . 5 . 3 . . . 5 . . Targets Rammed 142 | . 47 8 . 4 20 3 37 1 . . . . . 5 . 4 . . . 5 7 1 Kicked 53 | . 45 . . . . . . . . . . . . . . . . . . . 7 1 Crushed 8 | . . 2 . 2 2 1 . . . . . . . . . 1 . . . . . . Highest Temperature 319 | . 21 8 . 9 135 230 2 . 204 180 12 . 132 144 192 247 319 215 60 188 199 144 Average Temperature 57 | . 8 3 . 6 50 120 1 . 82 71 5 . 73 36 48 80 154 63 24 45 55 48 Received Heat Transfer 3549 | . 312 18 . 69 504 297 189 . 64 . . . 24 . 313 292 36 54 121 193 697 366 Siege Activations 7 | . . . . . . . . . . . . . . . 5 1 . . . . . 1 Total Turns 109 | . . . . . . . . . . . . . . . 56 19 . . . . . 34 Longest Duration 34 | . . . . . . . . . . . . . . . 33 19 . . . . . 34 Robots Corrupted 2 | . . . . . . . . . . . . . . . . . . . . . 2 . Combat Hostiles 2 | . . . . . . . . . . . . . . . . . . . . . 2 . Parts Fried 3 | . . . . . 2 . . . . . . . . . . . . . . . 1 . Impact Corruptions 7 | . . . . . 5 . . . . . . . . 2 . . . . . . . . Robots Melted 23 | . . . . . 1 . 1 . 1 . . . 1 . 1 3 . . . 1 9 5 Combat Hostiles 23 | . . . . . 1 . 1 . 1 . . . 1 . 1 3 . . . 1 9 5 Parts Melted 231 | . 2 2 . . 3 7 3 . 3 . 2 . 2 6 25 42 4 . 11 10 92 17 Heat Transferred 57478 | . 1924 703 . 222 1480 3589 3293 . 1036 222 333 . 853 888 5145 10928 888 148 2469 2505 14997 5855 Parts Sabotaged . | . . . . . . . . . . . . . . . . . . . . . . . Parts Stolen . | . . . . . . . . . . . . . . . . . . . . . . . Parts Stripped . | . . . . . . . . . . . . . . . . . . . . . . . Power Chain Reactions . | . . . . . . . . . . . . . . . . . . . . . . . Missiles Intercepted . | . . . . . . . . . . . . . . . . . . . . . . . Alert | -11 -10 -10 -10 -9 -8 -8 -8 -8 -6 -6 -6 -6 -5 -5 -5 -5 -5 -5 -5 -4 -4 -4 ------- Run | Scr Mat Min Exi Min Mat Sto Gar Rec Fac Low Low Dat Pro Fac Gar Fac Upp Upp War Pro Fac Arm Peak Influence 1651 | . 276 150 . 50 572 896 1073 607 1040 . . . . 217 858 1035 . . . . 1651 1168 Initial 958 | . . 40 . . 1 208 352 482 958 . . . . 23 52 450 . . . . 20 808 Average 417 | . 110 37 . 16 325 531 776 397 820 . . . . 138 646 546 . . . . 503 892 Maximum Alert Level 5 | . 1 . . . 2 3 3 2 3 . . . . 1 3 3 . . . . 5 4 Low Security (%) 35 | . 93 100 . 100 13 . . 10 . . . . . 96 2 . . . . . 52 . Level 1 15 | . 6 . . . 61 21 4 45 . . . . . 3 7 16 . . . . 9 . Level 2 26 | . . . . . 24 62 38 43 34 . . . . . 34 65 . . . . 8 . Level 3 19 | . . . . . . 16 56 . 65 . . . . . 55 17 . . . . 10 83 Level 4 1 | . . . . . . . . . . . . . . . . . . . . . 11 16 Level 5 . | . . . . . . . . . . . . . . . . . . . . . 8 . High Security . | . . . . . . . . . . . . . . . . . . . . . . . Max Security . | . . . . . . . . . . . . . . . . . . . . . . . Squads Dispatched 58 | . 4 1 . . 4 8 . . 1 . . . . 1 . 17 . . . . 15 7 Investigation 9 | . 2 1 . . 3 . . . . . . . . . . 2 . . . . . 1 Extermination 10 | . . . . . . . . . . . . . . . . 4 . . . . 4 2 Reinforcement 18 | . 2 . . . 1 2 . . 1 . . . . 1 . 4 . . . . 4 3 Assault 6 | . . . . . . . . . . . . . . . . 1 . . . . 4 1 Garrison 15 | . . . . . . 6 . . . . . . . . . 6 . . . . 3 . Intercept . | . . . . . . . . . . . . . . . . . . . . . . . Searches Triggered 2 | . . . . . . . . . 2 . . . . . . . . . . . . . Data Miner Redirects 4 | . . . . . . . . . . . . . . . . 2 . . . . 1 1 Construction Impeded 1 | . . . . . . . . . . . . . . . . . . . . . 1 . Haulers Reinforced 6 | . . . . . . . . . . . . . . 1 . 2 . . . . 3 . Active Scanning Responses . | . . . . . . . . . . . . . . . . . . . . . . . Cargo Convoy Interrupts 1 | . . . . . . . . . . . . . . . . . . . . . 1 . Stealth | -11 -10 -10 -10 -9 -8 -8 -8 -8 -6 -6 -6 -6 -5 -5 -5 -5 -5 -5 -5 -4 -4 -4 --------- Run | Scr Mat Min Exi Min Mat Sto Gar Rec Fac Low Low Dat Pro Fac Gar Fac Upp Upp War Pro Fac Arm Distress Signals 18 | . 4 . . . 2 4 2 . . . . . . . . 1 . . . . 4 1 Communications Jammed 73 | . . . . . . . . . . . . . . . . . . . 48 . 25 . Distress Signals 73 | . . . . . . . . . . . . . . . . . . . 48 . 25 . Times Spotted 492 | . 32 19 . 3 54 30 27 12 3 . 2 . 4 4 28 50 4 4 66 11 93 46 Peak Tracking Total 13 | . 4 3 . 2 8 5 5 6 2 . 2 . 3 1 5 4 1 4 12 4 13 12 Tactical Retreats 15 | . 1 3 . . 2 2 1 . . . . . . . . 1 . . 1 . . 4 Traps | -11 -10 -10 -10 -9 -8 -8 -8 -8 -6 -6 -6 -6 -5 -5 -5 -5 -5 -5 -5 -4 -4 -4 ------- Run | Scr Mat Min Exi Min Mat Sto Gar Rec Fac Low Low Dat Pro Fac Gar Fac Upp Upp War Pro Fac Arm Traps Triggered 10 | . . . . . 3 2 . . . . . . . . 1 4 . . . . . . Indirectly . | . . . . . . . . . . . . . . . . . . . . . . . Trap Hack Attempts . | . . . . . . . . . . . . . . . . . . . . . . . Triggered . | . . . . . . . . . . . . . . . . . . . . . . . Disarmed . | . . . . . . . . . . . . . . . . . . . . . . . Reprogrammed . | . . . . . . . . . . . . . . . . . . . . . . . Reused . | . . . . . . . . . . . . . . . . . . . . . . . Traps Extracted . | . . . . . . . . . . . . . . . . . . . . . . . Installed . | . . . . . . . . . . . . . . . . . . . . . . . Triggered 28 | . . . . . . . . . . . . . . . . . 3 2 23 . . . Machines | -11 -10 -10 -10 -9 -8 -8 -8 -8 -6 -6 -6 -6 -5 -5 -5 -5 -5 -5 -5 -4 -4 -4 ---------- Run | Scr Mat Min Exi Min Mat Sto Gar Rec Fac Low Low Dat Pro Fac Gar Fac Upp Upp War Pro Fac Arm Machines Disabled 27 | . 1 1 . . 2 3 1 . . . . . . 1 2 1 . . . . 13 2 Max in Single Turn 5 | . 1 1 . . . 1 1 . . . . . . 1 1 1 . . . . 5 1 Garrison Relay 2 | . . . . . . . 1 . . . . . . . 1 . . . . . . . Machines Sabotaged . | . . . . . . . . . . . . . . . . . . . . . . . Garrisons Compromised . | . . . . . . . . . . . . . . . . . . . . . . . Overloaded Fab Kills . | . . . . . . . . . . . . . . . . . . . . . . . Hacking | -11 -10 -10 -10 -9 -8 -8 -8 -8 -6 -6 -6 -6 -5 -5 -5 -5 -5 -5 -5 -4 -4 -4 --------- Run | Scr Mat Min Exi Min Mat Sto Gar Rec Fac Low Low Dat Pro Fac Gar Fac Upp Upp War Pro Fac Arm Machines Accessed 53 | . 7 1 1 . 10 4 2 7 1 1 . 3 . 1 . 6 . . . . 6 3 Terminals 31 | . 5 . . . 7 3 2 3 . 1 . . . . . 3 . . . . 5 2 Fabricators 4 | . . . . . . . . . 1 . . . . . . 2 . . . . . 1 Repair Stations 2 | . . . . . 1 . . . . . . . . . . 1 . . . . . . Recycling Units 8 | . 2 . . . 1 . . 4 . . . . . . . . . . . . 1 . Scanalyzers 1 | . . . . . 1 . . . . . . . . . . . . . . . . . Garrison Access 2 | . . . . . . 1 . . . . . . . 1 . . . . . . . . Total Hacks 144 | . 17 1 1 . 24 8 4 23 2 1 . 25 . 1 . 15 . . . . 14 8 Successful 85 | . 10 1 1 . 13 4 1 12 2 1 . 25 . 1 . 9 . . . . 3 2 Failed 58 | . 6 . . . 11 4 3 11 . . . . . . . 6 . . . . 11 6 Catastrophic 9 | . . . . . 4 . 1 1 . . . . . . . . . . . . 1 2 Database Lockouts 1 | . 1 . . . . . . . . . . . . . . . . . . . . . Manual 73 | . 10 . . . 15 6 . 18 1 . . . . . . 7 . . 1 . 8 7 Terminals 87 | . 15 . . . 16 7 4 14 . 1 . . . . . 10 . . . . 13 7 Fabricators 7 | . . . . . . . . . 2 . . . . . . 4 . . . . . 1 Repair Stations 3 | . . . . . 2 . . . . . . . . . . 1 . . . . . . Recycling Units 15 | . 2 . . . 3 . . 9 . . . . . . . . . . . . 1 . Scanalyzers 3 | . . . . . 3 . . . . . . . . . . . . . . . . . Garrison Access 2 | . . . . . . 1 . . . . . . . 1 . . . . . . . . Terminal Hacks 54 | . 6 1 1 . 4 2 1 6 . 1 . 25 . . . 5 . . . . 1 1 Record 8 | . . . 1 . . . . . . 1 . 6 . . . . . . . . . . Part Schematic 12 | . . . . . . . . . . . . 12 . . . . . . . . . . Robot Schematic 4 | . . . . . . . . . . . . 4 . . . . . . . . . . Robot Analysis 1 | . 1 . . . . . . . . . . . . . . . . . . . . . Prototype ID Bank 7 | . . . . . 1 . . 3 . . . 3 . . . . . . . . . . Open Door 2 | . . 1 . . . 1 . . . . . . . . . . . . . . . . Branch Access Points 2 | . . . . . 1 . . . . . . . . . . 1 . . . . . . Emergency Access Points 2 | . 1 . . . . . 1 . . . . . . . . . . . . . . . Terminal Index 1 | . . . . . . . . . . . . . . . . 1 . . . . . . Alert Level 3 | . . . . . 1 . . 1 . . . . . . . 1 . . . . . . Unreport Threat 7 | . . . . . 1 1 . 2 . . . . . . . 1 . . . . 1 1 Locate Traps 3 | . 3 . . . . . . . . . . . . . . . . . . . . . Hauler Manifests 1 | . 1 . . . . . . . . . . . . . . . . . . . . . Zone Layout 1 | . . . . . . . . . . . . . . . . 1 . . . . . . Fabricator Hacks 2 | . . . . . . . . . 1 . . . . . . 1 . . . . . . Network Status 1 | . . . . . . . . . 1 . . . . . . . . . . . . . Build 1 | . . . . . . . . . . . . . . . . 1 . . . . . . Repair Station Hacks 2 | . . . . . 2 . . . . . . . . . . . . . . . . . Scan Component 1 | . . . . . 1 . . . . . . . . . . . . . . . . . Repair 1 | . . . . . 1 . . . . . . . . . . . . . . . . . Recycling Unit Hacks 1 | . . . . . . . . 1 . . . . . . . . . . . . . . Retrieve Components 1 | . . . . . . . . 1 . . . . . . . . . . . . . . Scanalyzer 3 | . . . . . 3 . . . . . . . . . . . . . . . . . Insert Component 3 | . . . . . 3 . . . . . . . . . . . . . . . . . Garrison Access Hacks 2 | . . . . . . 1 . . . . . . . 1 . . . . . . . . Unlock Access 2 | . . . . . . 1 . . . . . . . 1 . . . . . . . . Unauthorized Hacks 21 | . 4 . . . 4 1 . 5 1 . . . . . . 3 . . . . 2 1 Terminals 10 | . 2 . . . 2 1 . 1 . . . . . . . 2 . . . . 1 1 Botnet 10 | . 2 . . . 2 1 . 1 . . . . . . . 2 . . . . 1 1 Fabricators 1 | . . . . . . . . . 1 . . . . . . . . . . . . . Haulers 1 | . . . . . . . . . 1 . . . . . . . . . . . . . Repair Stations 1 | . . . . . . . . . . . . . . . . 1 . . . . . . Mechanics 1 | . . . . . . . . . . . . . . . . 1 . . . . . . Recycling Units 9 | . 2 . . . 2 . . 4 . . . . . . . . . . . . 1 . Reject 1 | . . . . . . . . . . . . . . . . . . . . . 1 . Mask 1 | . . . . . 1 . . . . . . . . . . . . . . . . . Tunnel 7 | . 2 . . . 1 . . 4 . . . . . . . . . . . . . . Scanalyzers . | . . . . . . . . . . . . . . . . . . . . . . . Garrison Access . | . . . . . . . . . . . . . . . . . . . . . . . Data Cores Recovered 1 | . . . . . . . . . . . . . . . . . . . . . 1 . Used . | . . . . . . . . . . . . . . . . . . . . . . . Hacking Detections 37 | . 3 . . . 8 3 2 5 1 . . . . 1 . 5 . . . . 6 3 Full Trace Events 4 | . . . . . 1 . . 1 . . . . . . . 1 . . . . . 1 Feedback Events . | . . . . . . . . . . . . . . . . . . . . . . . Feedback Blocked . | . . . . . . . . . . . . . . . . . . . . . . . Robot Schematics Acquired 4 | . . . . . . . . . . . . 4 . . . . . . . . . . Robots Built . | . . . . . . . . . . . . . . . . . . . . . . . Authchips . | . . . . . . . . . . . . . . . . . . . . . . . Time . | . . . . . . . . . . . . . . . . . . . . . . . Total Robot Build Rating . | . . . . . . . . . . . . . . . . . . . . . . . Part Schematics Acquired 12 | . . . . . . . . . . . . 12 . . . . . . . . . . Parts Built 2 | . . . . . . . . . . . . . . . . 2 . . . . . . Authchips . | . . . . . . . . . . . . . . . . . . . . . . . Time 128 | . . . . . . . . . . . . . . . . 128 . . . . . . Total Part Build Rating 16 | . . . . . . . . . . . . . . . . 16 . . . . . . Parts Repaired 1 | . . . . . 1 . . . . . . . . . . . . . . . . . Time 26 | . . . . . 26 . . . . . . . . . . . . . . . . . Parts Recycled . | . . . . . . . . . . . . . . . . . . . . . . . Recycled Matter . | . . . . . . . . . . . . . . . . . . . . . . . Retrieved Matter . | . . . . . . . . . . . . . . . . . . . . . . . Retrieved Components 1 | . . . . . . . . 1 . . . . . . . . . . . . . . Parts Scanalyzed . | . . . . . . . . . . . . . . . . . . . . . . . Part Schematics Acquired . | . . . . . . . . . . . . . . . . . . . . . . . Parts Damaged . | . . . . . . . . . . . . . . . . . . . . . . . Bothacking | -11 -10 -10 -10 -9 -8 -8 -8 -8 -6 -6 -6 -6 -5 -5 -5 -5 -5 -5 -5 -4 -4 -4 ------------ Run | Scr Mat Min Exi Min Mat Sto Gar Rec Fac Low Low Dat Pro Fac Gar Fac Upp Upp War Pro Fac Arm Used RIF Installer . | . . . . . . . . . . . . . . . . . . . . . . . Robots Hacked 4 | . . . 4 . . . . . . . . . . . . . . . . . . . Non-combat 3 | . . . 3 . . . . . . . . . . . . . . . . . . . Combat 1 | . . . 1 . . . . . . . . . . . . . . . . . . . Robot Hacks Applied 4 | . . . 4 . . . . . . . . . . . . . . . . . . . parse_system 4 | . . . 4 . . . . . . . . . . . . . . . . . . . Relay Couplers Released 16 | . . . . . . . 5 . . . . . . . 7 . . . . . 4 . Machine Destruction 9 | . . . . . . . 5 . . . . . . . 4 . . . . . . . Programmers 7 | . . . . . . . . . . . . . . . 3 . . . . . 4 . Fabnet Peak Effective % . | . . . . . . . . . . . . . . . . . . . . . . . Robots Rewired 2 | . . . . . . . . . . . . . . . 2 . . . . . . . Allies Hacked . | . . . . . . . . . . . . . . . . . . . . . . . Hacks Repelled . | . . . . . . . . . . . . . . . . . . . . . . . Allies | -11 -10 -10 -10 -9 -8 -8 -8 -8 -6 -6 -6 -6 -5 -5 -5 -5 -5 -5 -5 -4 -4 -4 -------- Run | Scr Mat Min Exi Min Mat Sto Gar Rec Fac Low Low Dat Pro Fac Gar Fac Upp Upp War Pro Fac Arm Total Allies 16 | . . . . 3 . 10 . . . . . . 1 . 2 . . . . . . . Largest Group 10 | . . . . 3 3 10 4 . . . . . 1 1 2 2 . . . . . . Highest-Rated Group 201 | . . . . 76 76 173 76 . . . . . 96 96 201 201 . . . . . . Highest-Rated Ally 116 | . . . . 31 31 29 29 . . . . . 96 96 116 116 . . . . . . Total Orders 22 | . . . . . . . 2 . . . . . . . 11 8 . . . . . 1 STAY 10 | . . . . . . . 1 . . . . . . . 5 4 . . . . . . ROAM 1 | . . . . . . . . . . . . . . . 1 . . . . . . . FOLLOW 10 | . . . . . . . 1 . . . . . . . 5 4 . . . . . . EXPLORE 1 | . . . . . . . . . . . . . . . . . . . . . . 1 Ally Attacks 141 | . . . . . 41 37 23 . . . . . 13 3 12 12 . . . . . . Total Damage 3015 | . . . . . 547 436 285 . . . . . 423 138 488 698 . . . . . . Kills 23 | . . . . . 7 6 1 . . . . . 1 2 2 4 . . . . . . Allies Corrupted . | . . . . . . . . . . . . . . . . . . . . . . . Allies Melted 1 | . . . . . . . . . . . . . . . . . . . 1 . . . Intel | -11 -10 -10 -10 -9 -8 -8 -8 -8 -6 -6 -6 -6 -5 -5 -5 -5 -5 -5 -5 -4 -4 -4 ------- Run | Scr Mat Min Exi Min Mat Sto Gar Rec Fac Low Low Dat Pro Fac Gar Fac Upp Upp War Pro Fac Arm Robot Analysis Total 1 | . 1 . . . . . . . . . . . . . . . . . . . . . Derelict Logs Recovered 6 | . . 1 . . . . . . . 2 . . 1 . . . . . . 2 . . Drone Launches 1 | . . . . . . . . . . . . . . . . . . . . . . 1 Drone Recoveries . | . . . . . . . . . . . . . . . . . . . . . . . Exploration | -11 -10 -10 -10 -9 -8 -8 -8 -8 -6 -6 -6 -6 -5 -5 -5 -5 -5 -5 -5 -4 -4 -4 ------------- Run | Scr Mat Min Exi Min Mat Sto Gar Rec Fac Low Low Dat Pro Fac Gar Fac Upp Upp War Pro Fac Arm Turns Passed 27260 | . 1984 1856 503 899 2385 817 1345 448 812 1379 925 141 751 562 1796 2771 1101 578 1605 2482 1583 537 Spaces Moved 13257 | 1 1049 1005 309 525 1138 369 627 279 434 844 564 88 413 307 694 1299 472 333 724 882 690 211 Core . | . . . . . . . . . . . . . . . . . . . . . . . Treads 11349 | . 118 1005 309 525 1138 369 627 279 434 844 564 88 413 307 694 1299 472 333 724 807 . . Legs 1908 | 1 931 . . . . . . . . . . . . . . . . . . 75 690 211 Wheels . | . . . . . . . . . . . . . . . . . . . . . . . Hover . | . . . . . . . . . . . . . . . . . . . . . . . Flight . | . . . . . . . . . . . . . . . . . . . . . . . Fastest Speed 98 | 120 120 160 160 160 160 160 160 160 160 160 160 160 160 160 160 160 160 160 160 170 98 102 Average Speed 163 | 120 124 160 160 160 160 160 160 160 160 160 160 160 160 160 203 161 160 164 193 238 117 115 Slowest Speed 245 | 120 160 160 160 160 160 160 240 160 160 160 160 160 160 160 245 245 160 240 245 245 178 178 Overloaded Moves . | . . . . . . . . . . . . . . . . . . . . . . . Propulsion Burnouts . | . . . . . . . . . . . . . . . . . . . . . . . Robots Hopped 1 | . . . . . . 1 . . . . . . . . . . . . . . . . Cave-ins Triggered . | . . . . . . . . . . . . . . . . . . . . . . . Exploration Rate (%) 60 | 1 96 99 64 98 78 53 71 57 13 94 78 70 69 12 75 41 56 58 83 87 20 23 Regions Visited 22 Branch Regions 14 Pre-discovered Areas 12 | . 2 1 1 . 1 . . 4 . 1 . 1 . . . . . . . 1 . . Known Exits Taken 14 | . . . 1 . 1 1 . . 1 1 1 1 1 1 . 1 1 1 1 1 . . Unknown Exits Taken 6 | 1 1 1 . 1 . . . 1 . . . . . . . . . . . . 1 . Scrap Searched 19 | . . 1 . 4 . . . . . 5 2 . 1 . . . 3 2 . 1 . . Spaces Dug 128 | . . . . . 8 . 2 . 1 . . . 9 8 15 8 19 14 28 14 1 1 Terrain Destroyed 607 | . . . . . 8 . 11 . 1 . . . 9 8 45 17 29 46 93 121 143 76 Melee 1 | . . . . . . . . . 1 . . . . . . . . . . . . . Projectile 83 | . . . . . . . . . . . . . . . . 17 . 1 7 39 6 13 AOE 523 | . . . . . 8 . 11 . . . . . 9 8 45 . 29 45 86 82 137 63 Terrain Rammed . | . . . . . . . . . . . . . . . . . . . . . . . Walls Destroyed . | . . . . . . . . . . . . . . . . . . . . . . . Machines Disabled . | . . . . . . . . . . . . . . . . . . . . . . . Actions | -11 -10 -10 -10 -9 -8 -8 -8 -8 -6 -6 -6 -6 -5 -5 -5 -5 -5 -5 -5 -4 -4 -4 --------- Run | Scr Mat Min Exi Min Mat Sto Gar Rec Fac Low Low Dat Pro Fac Gar Fac Upp Upp War Pro Fac Arm Total 16928 | . 1569 1158 316 562 1481 484 810 280 528 865 573 88 476 347 931 1739 798 350 872 1167 1144 390 Wait 1586 | . 351 71 . 15 107 27 25 . 13 2 1 . 40 8 76 184 292 1 33 182 108 50 Move 13233 | . 1048 1004 308 524 1137 367 624 278 433 843 563 87 412 307 692 1298 471 332 723 881 690 211 Hop 1 | . . . . . . 1 . . . . . . . . . . . . . . . . Pick Up 164 | . 9 9 1 1 29 2 5 . 12 6 . . . 4 14 15 2 . 15 1 30 9 Fast Attach 111 | . 3 . . . 7 5 5 1 11 . . . . . 12 16 2 . 8 1 31 9 Attach 91 | . 2 2 1 1 7 2 6 . 7 1 . . . 3 5 5 2 2 4 5 24 12 Detach 26 | . . . . . . . 3 . 2 . . . . . 3 1 . . 1 1 13 2 Swap 275 | . 12 4 1 4 22 11 9 . 10 2 4 1 14 6 18 38 13 6 23 29 27 21 Drop 240 | . 16 5 1 3 33 11 12 . 26 6 . . . 2 17 31 3 . 20 3 38 13 Fire 1034 | . 81 55 . 10 110 55 83 . 13 5 5 . 10 12 83 147 13 9 45 59 177 62 Melee 14 | . . . 4 . 9 . . . 1 . . . . . . . . . . . . . Ram . | . . . . . . . . . . . . . . . . . . . . . . . Kick 52 | . 45 . . . . . . . . . . . . . . . . . . . 6 1 Crush 89 | . 2 8 . 4 20 3 37 1 . . . . . 5 . 4 . . . 5 . . Escape Stasis 2 | . . . . . . . . . . . . . . . 2 . . . . . . . Rewire 10 | . . . . . . . 1 . . . . . . . 9 . . . . . . . Trap . | . . . . . . . . . . . . . . . . . . . . . . . Miscellaneous . | . . . . . . . . . . . . . . . . . . . . . . . Route ------- -11/Scrapyard -10/Materials (discovered 4 exits: [*Mat x3] / *Min) -10/Mines (discovered 3 exits: [*Mat x2] / *Exi) -10/Exiles (discovered 2 exits: *Min x2) -9/Mines (discovered 2 exits: *Mat x2) -8/Materials (discovered 4 exits: [*Fac x2] / *Sto x2) -8/Storage -8/Garrison (discovered 3 exits: *Rec x3) -8/Recycling -6/Factory -6/Lower Caves -6/Lower Caves (discovered 2 exits: *Fac / *Dat) -6/Data Miner -5/Proximity Caves -5/Factory (discovered 2 exits: Fac / Gar) -5/Garrison (discovered 3 exits: *Fac x3) -5/Factory (discovered 3 exits: *Fac / *Upp x2) -5/Upper Caves -5/Upper Caves (discovered 2 exits: Fac / *War) -5/Warlord -4/Proximity Caves -4/Factory (discovered 2 exits: *Upp / *Arm) -4/Armory History --------- Turn | Location | Event 1 | -11/Scrapyard | Discovered new exit (range 0) 1 | -11/Scrapyard | Entered Materials 165 | -10/Materials | Discovered new exit (range 13) 217 | -10/Materials | Discovered new exit (range 15) 570 | -10/Materials | Build established: Scavenger-Mutant 1061 | -10/Materials | Discovered new exit (range 15) 1185 | -10/Materials | Central database locked down 1448 | -10/Materials | Build established: Mutant 1607 | -10/Materials | Discovered new exit (range 3) 1985 | -10/Materials | Entered Mines 2023 | -10/Mines | Met a Derelict shopkeep closing up shop 2084 | -10/Mines | Build established: Scavenger-Mutant 2124 | -10/Mines | Deemed a non-threat by the Exiles lab entrance 2124 | -10/Mines | Discovered new exit (range 5) 2139 | -10/Mines | Discovered new exit (range 9) 2323 | -10/Mines | Learned location of Storage (-8) 2447 | -10/Mines | Found a damaged Exp. Sensor Array with a note attached 2456 | -10/Mines | Found Prototype Device 2766 | -10/Mines | Build established: Mutant 2973 | -10/Mines | Excavation squad dispatched 2973 | -10/Mines | A large section of the Mines collapsed 3618 | -10/Mines | Discovered new exit (range 12) 3841 | -10/Mines | Entered Exiles 3842 | -10/Exiles | Identified exit to Mines 3881 | -10/Exiles | Met 8R-AWN 3910 | -10/Exiles | Met EX-HEX 3963 | -10/Exiles | Met EX-BIN 4020 | -10/Exiles | Met EX-DEC 4282 | -10/Exiles | Learned location of Zion (-7) 4344 | -10/Exiles | Entered Mines 4348 | -9/Mines | Joined a pair of Derelicts in attacking an 0b10 outpost 4405 | -9/Mines | Core integrity fell below 50% 4610 | -9/Mines | Discovered new exit (range 10) 5028 | -9/Mines | Discovered new exit (range 8) 5123 | -9/Mines | Received a Mining Laser from a helpful Derelict 5243 | -9/Mines | Entered Materials 5243 | -8/Materials | Accompanied by 3 allies 5243 | -8/Materials | Evolved 4 slots: Propulsion x1, Utility x3 5248 | -8/Materials | Led the pair of lost Derelicts to an unsafe place 5808 | -8/Materials | Identified exit to Storage 6078 | -8/Materials | Build established: Scavenger-Mutant 6194 | -8/Materials | Repaired Lgt. Treads 6522 | -8/Materials | Discovered new exit (range 16) 6537 | -8/Materials | Identified Exp. Sensor Array 7065 | -8/Materials | Destroyed 8 combat bots 7254 | -8/Materials | Discovered new exit (range 15) 7298 | -8/Materials | Build established: Mutant 7628 | -8/Materials | Entered Storage 7805 | -8/Storage | Garrison activated, responded to threat 7985 | -8/Storage | Build established: Scavenger-Mutant 8240 | -8/Storage | Garrison activated, responded to threat 8271 | -8/Storage | Assisted by bots powering up and referring to "LRC-V3" 8443 | -8/Storage | Core integrity fell below 50% 8445 | -8/Storage | Identified exit to Garrison 8445 | -8/Storage | Entered Garrison 8445 | -8/Garrison | Accompanied by 4 allies 8458 | -8/Garrison | Triggered checkpoint 8587 | -8/Garrison | Triggered checkpoint 8610 | -8/Garrison | Triggered checkpoint 8650 | -8/Garrison | Triggered checkpoint 8763 | -8/Garrison | Garrison Relay disabled 8892 | -8/Garrison | Discovered new exit (range 12) 9118 | -8/Garrison | Destroyed 10 combat bots 9189 | -8/Garrison | Discovered new exit (range 11) 9440 | -8/Garrison | Triggered checkpoint 9459 | -8/Garrison | Attempted to access garrison exit controls, blocked by remote lockdown 9577 | -8/Garrison | Build established: Mutant 9621 | -8/Garrison | Attempted to access garrison exit controls, blocked by remote lockdown 9710 | -8/Garrison | Triggered checkpoint 9747 | -8/Garrison | Discovered new exit (range 9) 9790 | -8/Garrison | Entered Recycling 9820 | -8/Recycling | Spotter reported a threat 9826 | -8/Recycling | Spotter reported a threat 9852 | -8/Recycling | Spotter reported a threat 9853 | -8/Recycling | Spotter reported a threat 9938 | -8/Recycling | Spotter reported a threat 9995 | -8/Recycling | Spotter reported a threat 10011 | -8/Recycling | Spotter reported a threat 10015 | -8/Recycling | Spotter reported a threat 10028 | -8/Recycling | Spotter reported a threat 10028 | -8/Recycling | Spotter reported a threat 10032 | -8/Recycling | Spotter reported a threat 10048 | -8/Recycling | Spotter reported a threat 10056 | -8/Recycling | Spotter reported a threat 10059 | -8/Recycling | Spotter reported a threat 10068 | -8/Recycling | Spotter reported a threat 10083 | -8/Recycling | Discovered new exit (range 16) 10084 | -8/Recycling | Spotter reported a threat 10175 | -8/Recycling | Spotter reported a threat 10183 | -8/Recycling | Spotter reported a threat 10183 | -8/Recycling | Spotter reported a threat 10238 | -8/Recycling | Entered Factory 10238 | -6/Factory | Evolved 4 slots: Power x1, Propulsion x1, Utility x1, Weapon x1 10588 | -6/Factory | Search patrols dispatched 10786 | -6/Factory | Found Unknown Device 10786 | -6/Factory | Identified Launcher Loader 10852 | -6/Factory | Build established: Tank 10914 | -6/Factory | Discovered new exit (range 15) 10938 | -6/Factory | Search patrols dispatched 11049 | -6/Factory | Identified exit to Lower Caves 11050 | -6/Factory | Entered Lower Caves 11057 | -6/Lower Caves | Met a Warlord Commander 11065 | -6/Lower Caves | Found Encrypted Comm Array 11245 | -6/Lower Caves | Learned 12 Factory zone layouts 11343 | -6/Lower Caves | Build established: Skirmisher 11658 | -6/Lower Caves | Encountered a Warlord checkpoint 11741 | -6/Lower Caves | Discovered new exit (range 9) 11752 | -6/Lower Caves | Identified exit to Lower Caves 12429 | -6/Lower Caves | Entered another Lower Caves area 12573 | -6/Lower Caves | Discovered new exit (range 5) 12579 | -6/Lower Caves | Identified exit to Factory 13045 | -6/Lower Caves | Build established: Mutant 13155 | -6/Lower Caves | Discovered new exit (range 7) 13352 | -6/Lower Caves | Identified exit to Data Miner 13354 | -6/Lower Caves | Entered Data Miner 13354 | -6/Data Miner | Discovered new exit (range 6) 13385 | -6/Data Miner | Met Data Miner 13433 | -6/Data Miner | Learned location of Section 7 (-2) 13433 | -6/Data Miner | Acquired the access code to Warlord's prototype stash 13452 | -6/Data Miner | Received God Mode back door access code from Data Miner 13492 | -6/Data Miner | Identified exit to Proximity Caves 13495 | -6/Data Miner | Entered Proximity Caves 13673 | -5/Proximity Caves | Escorted by Enhanced Grunt 13756 | -5/Proximity Caves | Learned Factory garrison access intel 14033 | -5/Proximity Caves | Spotted B-75 Beast 14042 | -5/Proximity Caves | Destroyed B-75 Beast 14119 | -5/Proximity Caves | Discovered exit to Factory (range 16) 14246 | -5/Proximity Caves | Entered Factory 14246 | -5/Factory | Accompanied by 1 ally 14246 | -5/Factory | Evolved 2 slots: Utility x2 14247 | -5/Factory | Identified exit to Factory 14248 | -5/Factory | Loaded intel: 4 garrison access locations 14537 | -5/Factory | Build established: Tank 14807 | -5/Factory | Identified exit to Garrison 14808 | -5/Factory | Entered Garrison 14808 | -5/Garrison | Accompanied by 1 ally 14873 | -5/Garrison | Garrison Relay disabled 14922 | -5/Garrison | Triggered checkpoint 14936 | -5/Garrison | Spotted B-75 Beast 14944 | -5/Garrison | Triggered checkpoint 14967 | -5/Garrison | Destroyed B-75 Beast 15094 | -5/Garrison | Triggered checkpoint 15199 | -5/Garrison | Discovered new exit (range 13) 15304 | -5/Garrison | Triggered checkpoint 15452 | -5/Garrison | Triggered checkpoint 15554 | -5/Garrison | Lost 5 parts (2p1n2u) 15805 | -5/Garrison | Discovered new exit (range 13) 15836 | -5/Garrison | Identified exit to Factory 15854 | -5/Garrison | Attempted to access garrison exit controls, blocked by remote lockdown 16010 | -5/Garrison | Discovered exit to Factory (range 8) 16202 | -5/Garrison | Spotted B-90 Cyclops 16204 | -5/Garrison | Spotted B-86 Titan 16237 | -5/Garrison | Destroyed B-90 Cyclops 16318 | -5/Garrison | Destroyed B-86 Titan 16319 | -5/Garrison | Build established: Scavenger-Gunner 16331 | -5/Garrison | Rewired B-86 Titan 16400 | -5/Garrison | Rewired B-75 Beast 16604 | -5/Garrison | Entered Factory 16604 | -5/Factory | Accompanied by 2 allies 16925 | -5/Factory | Incoming investigation squad redirected 16989 | -5/Factory | Build established: Scavenger-Tank 17027 | -5/Factory | Fabricated Adv. Weapon Cycler (x2) 17104 | -5/Factory | Garrison activated, responded to threat 17355 | -5/Factory | Discovered exit to Factory (range 6) 17628 | -5/Factory | Build established: Tank 17729 | -5/Factory | Garrison activated, responded to threat 17895 | -5/Factory | Identified exit to Upper Caves 18380 | -5/Factory | Build established: Scavenger-Tank 19300 | -5/Factory | Build established: Scavenger-Gunner 19304 | -5/Factory | First assault squad dispatched 19334 | -5/Factory | Incoming assault squad redirected 19375 | -5/Factory | Entered Upper Caves 19417 | -5/Upper Caves | Attracted the attention of an 0b10 outpost 19587 | -5/Upper Caves | Attracted the attention of an 0b10 checkpoint 19915 | -5/Upper Caves | Build established: Scavenger-Skirmisher 20440 | -5/Upper Caves | Discovered new exit (range 13) 20462 | -5/Upper Caves | Identified exit to Upper Caves 20476 | -5/Upper Caves | Entered another Upper Caves area 20477 | -5/Upper Caves | Discovered exit to Factory (range 13) 20734 | -5/Upper Caves | Build established: Scavenger-Tank 21011 | -5/Upper Caves | Discovered new exit (range 11) 21026 | -5/Upper Caves | Identified exit to Warlord 21054 | -5/Upper Caves | Entered Warlord 21107 | -5/Warlord | System corruption cleaned by Quarantine Array 21196 | -5/Warlord | Build established: Scavenger-Mutant 21725 | -5/Warlord | Found Prototype Special Weapon 21728 | -5/Warlord | Found Prototype Special Weapon 21729 | -5/Warlord | Identified RU-N14's Throwing Claymores v3 (x2) 21734 | -5/Warlord | Found RU-N14's Throwing Claymores v3 21748 | -5/Warlord | Met Warlord 21762 | -5/Warlord | Opened Warlord's prototype stash 21768 | -5/Warlord | Found Prototype Reactor 21768 | -5/Warlord | Identified Vortex Chain Reactor 21771 | -5/Warlord | Warlord's base attacked by MAIN.C 21774 | -5/Warlord | Found Prototype Device 21774 | -5/Warlord | Identified Exp. Phase Shifter 21785 | -5/Warlord | Found Prototype Processor 21785 | -5/Warlord | Identified Exp. Armor Integrity Analyzer 21788 | -5/Warlord | Found Prototype Device 21788 | -5/Warlord | Identified Exp. Focal Shield 21797 | -5/Warlord | Found Prototype Hackware 22101 | -5/Warlord | Warlord forces counterattacked 22132 | -5/Warlord | Spotted Executioner 22163 | -5/Warlord | Destroyed Executioner 22187 | -5/Warlord | Destroyed 7 combat bots 22193 | -5/Warlord | Spotted Executioner 22253 | -5/Warlord | Discovered new exit (range 14) 22255 | -5/Warlord | Found Exp. Targeting Computer 22271 | -5/Warlord | Spotted Striker 22272 | -5/Warlord | Destroyed Striker 22295 | -5/Warlord | Found Exp. Core Analyzer 22297 | -5/Warlord | Destroyed 11 combat bots 22333 | -5/Warlord | Build established: Scavenger-Tank 22393 | -5/Warlord | Spotted Executioner 22395 | -5/Warlord | Spotted Executioner 22422 | -5/Warlord | Destroyed Executioner 22425 | -5/Warlord | Destroyed Executioner 22446 | -5/Warlord | Warlord base infiltrated, sounded retreat 22583 | -5/Warlord | Spotted Executioner 22583 | -5/Warlord | Spotted Striker 22584 | -5/Warlord | Spotted Executioner 22654 | -5/Warlord | Identified exit to Proximity Caves 22659 | -5/Warlord | Entered Proximity Caves 22716 | -4/Proximity Caves | Learned location of Testing (-3) 23075 | -4/Proximity Caves | Spotted B-86 Titan 23092 | -4/Proximity Caves | Destroyed B-86 Titan 23843 | -4/Proximity Caves | Build established: Skirmisher 23872 | -4/Proximity Caves | Learned Research trap positions 24830 | -4/Proximity Caves | Build established: Mutant 24937 | -4/Proximity Caves | Discovered exit to Factory (range 10) 25141 | -4/Proximity Caves | Entered Factory 25141 | -4/Factory | Evolved 2 slots: Propulsion x1, Utility x1 25415 | -4/Factory | Discovered new exit (range 6) 25476 | -4/Factory | Identified exit to Upper Caves 26119 | -4/Factory | Lost 4 parts (3u1w) 26141 | -4/Factory | First assault squad dispatched 26260 | -4/Factory | Incoming assault squad redirected 26299 | -4/Factory | Garrison activated, responded to threat 26307 | -4/Factory | Lost 3 parts (2u1w) 26341 | -4/Factory | Destroyed 11 combat bots 26418 | -4/Factory | Build established: Scavenger-Gunner 26432 | -4/Factory | Spotted Striker 26433 | -4/Factory | Cargo convoy interrupted 26442 | -4/Factory | Destroyed Striker 26483 | -4/Factory | Discovered new exit (range 14) 26499 | -4/Factory | Lost 3 parts (1p1n1u) 26507 | -4/Factory | Destroyed 17 combat bots 26585 | -4/Factory | Lost 6 parts (1p1n2u2w) 26651 | -4/Factory | Found Prototype Device 26651 | -4/Factory | Identified Adv. Kinecellerator 26661 | -4/Factory | Found Prototype Device 26661 | -4/Factory | Identified Exp. Actuator Array 26704 | -4/Factory | Found Exp. Phase Shifter 26724 | -4/Factory | Entered Armory 26866 | -4/Armory | Incoming investigation squad redirected 27019 | -4/Armory | First assault squad dispatched 27058 | -4/Armory | System corruption reached 10% 27114 | -4/Armory | Core integrity fell below 50% 27150 | -4/Armory | Lost 3 parts (1p1u1w) 27196 | -4/Armory | Destroyed 16 combat bots 27238 | -4/Armory | Core integrity fell below 20% 27261 | -4/Armory | Destroyed by G-67 Veteran with Plasma Rifle Last Messages --------------- 27229_ Lgt. Antimatter Reactor destroyed. 27230_ Reinforced Shell breached. 27230_ D-63 Destroyer destroyed. 27231_ Exp. Heat Sink destroyed. 27234_ Fabricator disabled. 27235_ The unstable cave ceiling collapses. 27236_ Plasma Rifle destroyed. 27238_ D-63 Destroyer destroyed. 27240_ Imp. Cooling System destroyed. 27241_ The unstable cave ceiling collapses. 27242_ D-63 Destroyer destroyed. 27243_ The unstable cave ceiling collapses. 27250_ Z:QAL1Z A/ZI&WCY17/9 27250_ The unstable cave ceiling collapses. 27252_ Compression Vault explodes. 27253_ The unstable cave ceiling collapses. 27259_ P-70 Sage resets I-47 Archangel, system corruption cleaned. 27259_ Plasma Rifle destroyed. 27260_ Kicked D-63 Destroyer out of the way. 27261_ Exp. Flexi-carbon Leg destroyed. Map ----- +----------------------------------------------------+ | ???????????????????????????????????????########### | | ?????????????????????????????????????????????????# | | ?????????????????????????????????????????????????# | | ??????????????????????????????????????????#??????# | | ???????????????????????????????????????????????### | | ?????????????????????????##+##########???###??#??# | | ?????????????????????????# ???## ###### | | ?????????????????????????# #### # | | ?????????????????????????# " # ## # ## | | ?????????????????????????# "" # # ## ## | | ?????????????????????????# "" ##### # % | | ?????????????????????????# "" | | ?????????????????????????# "" = ! | | ?????????????????????????# "" # = ###[ | | ?????????????????????????# "" # # ### | | ?????????????????????????# " # #?? | | ?????????????????????????# #?? | | ?????????????????????????# # # #?? | | ?????????????????????????########### # " #?? | | ???????????????????############ # # # T #?? | | ???????????????????# " #?? | | ???????????????????# g! g "" # #?? | | ???????????????????# "" ######?? | | ???????????????????# !g/g = F" ##????? | | ???????????????????# !//g "" ##???? | | ???????????????????# !/ @ "g # #???? | | ?????????? """ + pp/ di # ## #???? | | ?????????? """ ########### # ##????? | | ?????????????????????????## #????? | | ??????????????????????????# # #????? | | ??????????????????????????##### # " " #????? | | ???????????????????????????????#### " " #????? | | ??????????????????????????????????## #????? | | ???????????????????????????????????# #????? | | ???????????????????????????????????? #????? | | ???????????????????????????????????? #????? | | ???????????????????????????????????? #????? | | ????????????????????????????????????#########????? | | | | | | | | | | | | | | | | | | | | | | | | | +----------------------------------------------------+ Best States ------------- Heat Dissipation 145 Coolant Potential 100 Energy Generation 55 Energy Capacity 1200 Matter Stores 300 Matter Capacity 300 Sight Range 23 Robot Scan Range 20 Terrain Scan Range 20 Terrain Scan Density 10 Jamming Range 14 Armor Coverage 600 Resistance: KI 30 Point Defense Rating 80 Weapon Cycling 25 Phase Shifting 20 Evasion (%) 65 Targeting Accuracy 12 Recoil Reduction 4 Energy Filtering 50 Particle Charging 25 Offensive Hacking 10 Item Schematics ----------------- Combat Drone Bay | -6/Data Miner | Free Lgt. Regenerative Plating | -6/Data Miner | Free Enh. Armored Leg | -6/Data Miner | Free Prc. Energy Filter | -6/Data Miner | Free Kinetic Spear | -6/Data Miner | Free Field Propulsion Array | -6/Data Miner | Free Adv. Transmission Jammer | -6/Data Miner | Free Adv. Datajack | -6/Data Miner | Free Adv. Particle Charger | -6/Data Miner | Free Imp. Cloaking Device | -6/Data Miner | Free Biometal Leg | -6/Data Miner | Free Nova Cannon | -6/Data Miner | Free Robot Schematics ------------------ H-66 Slayer | -6/Data Miner | Free S-27 Virus | -6/Data Miner | Free Y-64 Sentinel | -6/Data Miner | Free L-41 Fighter | -6/Data Miner | Free Fabricated ------------ Adv. Weapon Cycler | x2 | -5/Factory | Preloaded Alien Tech Used ----------------- None Achievements -------------- None Challenges ------------ None Game ------ Seed StormScanNukerbomber Manual? 0 Play Time 02:58:51 Cumulative 751.2 hours Start 2022.07.04 @ 09:50:31 End 2022.07.04 @ 13:55:06 Sessions 1 Manual Loads 0 Difficulty Rogue Special Mode None Game No. 327 Rogue 326 Adventurer 1 Explorer 0 Win Type - Total 84 Types 24/9/13/3/2/1/30/1/1 Lore% 98 Gallery% 99 Achievement% 90 Wizard Run 0 Options --------- ASCII 1 Keyboard 1 Movement Numpad Keybinds 0 Fullscreen 0 Font 18/Smallcaps Map View 76x50 Tactical HUD 1 Map Filters NONE Filters NONE Steam 1 RUN: 8ad868e1-dd97-42b2-9f1a-7784487142e0